{"text_format":"3","workbook":"xlsx","n_sheets":1,"sheets":["Предмет"],"not_rendered":{"defined_names":8},"read":"whole","date_system":"1900"}

{"sheet":"Предмет","index":0,"n_rows":82,"n_cols":12,"rows_kept":82}
["№","Фамилия","Имя","Отчество","Класс","Класс участия","Балл","Макс. Балл","Статус","Призер МЭ прошлого года","Учитель","Место работы учителя"]
[1,3,4,5,9,10,11,12,13,14,15,16]
[1,"Чалина","Виктория","Александровна",5,5,69,100,"призер","нет","Гиниятуллина Альсина Раисовна","Муниципальное общеобразовательное учреждение \"Средняя общеобразовательная школа №29\"  Нижнекамского муниципального района Республики Татарстан"]
[2,"Хайруллина","Зарина","Рамилевна",5,5,28,100,"участник","нет","Гиниятуллина Альсина Раисовна","Муниципальное общеобразовательное учреждение \"Средняя общеобразовательная школа №29\"  Нижнекамского муниципального района Республики Татарстан"]
[3,"Мифтахов","Данияр","Рашидович",5,5,26,100,"участник","нет","Гиниятуллина Альсина Раисовна","Муниципальное общеобразовательное учреждение \"Средняя общеобразовательная школа №29\"  Нижнекамского муниципального района Республики Татарстан"]
[4,"Мельников","Кирилл","Александрович",5,5,25,100,"участник","нет","Гиниятуллина Альсина Раисовна","Муниципальное общеобразовательное учреждение \"Средняя общеобразовательная школа №29\"  Нижнекамского муниципального района Республики Татарстан"]
[5,"Владимирова","Яна","Денисовна",5,5,22,100,"участник","нет","Гиниятуллина Альсина Раисовна","Муниципальное общеобразовательное учреждение \"Средняя общеобразовательная школа №29\"  Нижнекамского муниципального района Республики Татарстан"]
[6,"Бригаднова","Елизавета","Дмитриевна",5,5,21,100,"участник","нет","Гиниятуллина Альсина Раисовна","Муниципальное общеобразовательное учреждение \"Средняя общеобразовательная школа №29\"  Нижнекамского муниципального района Республики Татарстан"]
[7,"Гайнуллин","Данил","Раилевич",5,5,18,100,"участник","нет","Гиниятуллина Альсина Раисовна","Муниципальное общеобразовательное учреждение \"Средняя общеобразовательная школа №29\"  Нижнекамского муниципального района Республики Татарстан"]
[8,"Мигинова ","Алиса","Айратовна",5,5,16,100,"участник","нет","Гиниятуллина Альсина Раисовна","Муниципальное общеобразовательное учреждение \"Средняя общеобразовательная школа №29\"  Нижнекамского муниципального района Республики Татарстан"]
[9,"Шурко","Алина","Викторвна",5,5,15,100,"участник","нет","Гиниятуллина Альсина Раисовна","Муниципальное общеобразовательное учреждение \"Средняя общеобразовательная школа №29\"  Нижнекамского муниципального района Республики Татарстан"]
[10,"Макаров","Арсений","Станиславович",5,5,12,100,"участник","нет","Гиниятуллина Альсина Раисовна","Муниципальное общеобразовательное учреждение \"Средняя общеобразовательная школа №29\"  Нижнекамского муниципального района Республики Татарстан"]
[11,"Хасанова","Аделина","Ильдаровна",6,6,66,100,"призер","нет","Лутфуллин Рафаэль Руфикович ","Муниципальное общеобразовательное учреждение \"Средняя общеобразовательная школа №29\"  Нижнекамского муниципального района Республики Татарстан"]
[12,"Хабибуллин","Камиль","Алмазович",6,6,45,100,"участник","нет","Лутфуллин Рафаэль Руфикович ","Муниципальное общеобразовательное учреждение \"Средняя общеобразовательная школа №29\"  Нижнекамского муниципального района Республики Татарстан"]
[13,"Славкина","Мария","Алексеевна",6,6,35,100,"участник","нет","Лутфуллин Рафаэль Руфикович ","Муниципальное общеобразовательное учреждение \"Средняя общеобразовательная школа №29\"  Нижнекамского муниципального района Республики Татарстан"]
[14,"Хазиева","Эльмира","Алмазовна",6,6,30,100,"участник","нет","Лутфуллин Рафаэль Руфикович ","Муниципальное общеобразовательное учреждение \"Средняя общеобразовательная школа №29\"  Нижнекамского муниципального района Республики Татарстан"]
[15,"Хазиев","Эмиль","Алмазович",6,6,29,100,"участник","нет","Лутфуллин Рафаэль Руфикович ","Муниципальное общеобразовательное учреждение \"Средняя общеобразовательная школа №29\"  Нижнекамского муниципального района Республики Татарстан"]
[16,"Краснова","Анастасия","Антоновна",6,6,27,100,"участник","нет","Лутфуллин Рафаэль Руфикович ","Муниципальное общеобразовательное учреждение \"Средняя общеобразовательная школа №29\"  Нижнекамского муниципального района Республики Татарстан"]
[17,"Ковязин","Роман","Вадимович",6,6,26,100,"участник","нет","Лутфуллин Рафаэль Руфикович ","Муниципальное общеобразовательное учреждение \"Средняя общеобразовательная школа №29\"  Нижнекамского муниципального района Республики Татарстан"]
[18,"Коновалова","Арина","Владимировна",6,6,25,100,"участник","нет","Лутфуллин Рафаэль Руфикович ","Муниципальное общеобразовательное учреждение \"Средняя общеобразовательная школа №29\"  Нижнекамского муниципального района Республики Татарстан"]
[19,"Хадиев","Айгиз","Ильдарович",6,6,24,100,"участник","нет","Лутфуллин Рафаэль Руфикович ","Муниципальное общеобразовательное учреждение \"Средняя общеобразовательная школа №29\"  Нижнекамского муниципального района Республики Татарстан"]
[20,"Давыдова","Амелия","Валерьевна",6,6,22,100,"участник","нет","Лутфуллин Рафаэль Руфикович ","Муниципальное общеобразовательное учреждение \"Средняя общеобразовательная школа №29\"  Нижнекамского муниципального района Республики Татарстан"]
[21,"Ахметова","Аделина","Ришатовна",7,7,50,100,"участник","нет","Гиниятуллина Альсина Раисовна","Муниципальное общеобразовательное учреждение \"Средняя общеобразовательная школа №29\"  Нижнекамского муниципального района Республики Татарстан"]
[22,"Сыннов","Карим","Равилевич",7,7,30,100,"участник","нет","Гиниятуллина Альсина Раисовна","Муниципальное общеобразовательное учреждение \"Средняя общеобразовательная школа №29\"  Нижнекамского муниципального района Республики Татарстан"]
[23,"Гумеровна","Милана","Артуровна",7,7,27,100,"участник","нет","Гиниятуллина Альсина Раисовна","Муниципальное общеобразовательное учреждение \"Средняя общеобразовательная школа №29\"  Нижнекамского муниципального района Республики Татарстан"]
[24,"Елагин","Роман","Андреевич",7,7,25,100,"участник","нет","Гиниятуллина Альсина Раисовна","Муниципальное общеобразовательное учреждение \"Средняя общеобразовательная школа №29\"  Нижнекамского муниципального района Республики Татарстан"]
[25,"Тулынин","Егор","Сергеевич",7,7,23,100,"участник","нет","Гиниятуллина Альсина Раисовна","Муниципальное общеобразовательное учреждение \"Средняя общеобразовательная школа №29\"  Нижнекамского муниципального района Республики Татарстан"]
[26,"Сергеев","Арсений ","Михайлович",7,7,22,100,"участник","нет","Гиниятуллина Альсина Раисовна","Муниципальное общеобразовательное учреждение \"Средняя общеобразовательная школа №29\"  Нижнекамского муниципального района Республики Татарстан"]
[27,"Абдуллина","Софья","Андреевна",7,7,20,100,"участник","нет","Гиниятуллина Альсина Раисовна","Муниципальное общеобразовательное учреждение \"Средняя общеобразовательная школа №29\"  Нижнекамского муниципального района Республики Татарстан"]
[28,"Галлямова","Дарья","Александровна",7,7,17,100,"участник","нет","Гиниятуллина Альсина Раисовна","Муниципальное общеобразовательное учреждение \"Средняя общеобразовательная школа №29\"  Нижнекамского муниципального района Республики Татарстан"]
[29,"Гилязутдинова","Камилла ","Рустемовна",7,7,15,100,"участник","нет","Гиниятуллина Альсина Раисовна","Муниципальное общеобразовательное учреждение \"Средняя общеобразовательная школа №29\"  Нижнекамского муниципального района Республики Татарстан"]
[30,"Ерусланова","Анастасия","Викторовна",7,7,16,100,"участник","нет","Гиниятуллина Альсина Раисовна","Муниципальное общеобразовательное учреждение \"Средняя общеобразовательная школа №29\"  Нижнекамского муниципального района Республики Татарстан"]
[31,"Проскурина","Екатерина","Петровна",8,8,61,100,"призер","нет","Степанов Бронислав Анатольевич","Муниципальное общеобразовательное учреждение \"Средняя общеобразовательная школа №29\"  Нижнекамского муниципального района Республики Татарстан"]
[32,"Габдрахманов","Арслан","Ильнарович",8,8,29,100,"участник","нет","Степанов Бронислав Анатольевич","Муниципальное общеобразовательное учреждение \"Средняя общеобразовательная школа №29\"  Нижнекамского муниципального района Республики Татарстан"]
[33,"Гусева","Кира","Сергеевна",8,8,27,100,"участник","нет","Степанов Бронислав Анатольевич","Муниципальное общеобразовательное учреждение \"Средняя общеобразовательная школа №29\"  Нижнекамского муниципального района Республики Татарстан"]
[34,"Сайфуллин ","Эльдар","Рамисович",8,8,24,100,"участник","нет","Степанов Бронислав Анатольевич","Муниципальное общеобразовательное учреждение \"Средняя общеобразовательная школа №29\"  Нижнекамского муниципального района Республики Татарстан"]
[35,"Фадеева","Аделина","Александровна",8,8,23,100,"участник","нет","Степанов Бронислав Анатольевич","Муниципальное общеобразовательное учреждение \"Средняя общеобразовательная школа №29\"  Нижнекамского муниципального района Республики Татарстан"]
[36,"Вишняков","Артем","Алексеевич",8,8,23,100,"участник","нет","Степанов Бронислав Анатольевич","Муниципальное общеобразовательное учреждение \"Средняя общеобразовательная школа №29\"  Нижнекамского муниципального района Республики Татарстан"]
[37,"Куляева","Елизавета","Михайловна",8,8,19,100,"участник","нет","Степанов Бронислав Анатольевич","Муниципальное общеобразовательное учреждение \"Средняя общеобразовательная школа №29\"  Нижнекамского муниципального района Республики Татарстан"]
[38,"Кондратье","Артур","Юрьевич",8,8,18,100,"участник","нет","Степанов Бронислав Анатольевич","Муниципальное общеобразовательное учреждение \"Средняя общеобразовательная школа №29\"  Нижнекамского муниципального района Республики Татарстан"]
[39,"Григорьева","Арина","Юрьевна",8,8,12,100,"участник","нет","Степанов Бронислав Анатольевич","Муниципальное общеобразовательное учреждение \"Средняя общеобразовательная школа №29\"  Нижнекамского муниципального района Республики Татарстан"]
[40,"Палкина ","Арина","Вячеславовна",8,8,11,100,"участник","нет","Степанов Бронислав Анатольевич","Муниципальное общеобразовательное учреждение \"Средняя общеобразовательная школа №29\"  Нижнекамского муниципального района Республики Татарстан"]
[41,"Сергеев","Тимур","Олегович",9,9,62,100,"призер","нет","Валиева Елена Анатольевна","Муниципальное общеобразовательное учреждение \"Средняя общеобразовательная школа №29\"  Нижнекамского муниципального района Республики Татарстан"]
[42,"Степаненков","Павел","Николаевич",9,9,48,100,"участник","нет","Валиева Елена Анатольевна","Муниципальное общеобразовательное учреждение \"Средняя общеобразовательная школа №29\"  Нижнекамского муниципального района Республики Татарстан"]
[43,"Гилязова","Нурзиля","Азатовна",9,9,45,100,"участник","нет","Валиева Елена Анатольевна","Муниципальное общеобразовательное учреждение \"Средняя общеобразовательная школа №29\"  Нижнекамского муниципального района Республики Татарстан"]
[44,"Петрик","Полина","Романовна",9,9,33,100,"участник","нет","Валиева Елена Анатольевна","Муниципальное общеобразовательное учреждение \"Средняя общеобразовательная школа №29\"  Нижнекамского муниципального района Республики Татарстан"]
[45,"Мифтахова ","Елизавета","Сергеевна",{"$f":"E46","v":9},{"$f":"F46","v":9},32,100,"участник","нет","Валиева Елена Анатольевна","Муниципальное общеобразовательное учреждение \"Средняя общеобразовательная школа №29\"  Нижнекамского муниципального района Республики Татарстан"]
[46,"Мубаракшина ","Лия","Наилевна",9,9,24,{"$f":"[1]лист1!l3","v":100},"участник","нет","Валиева Елена Анатольевна","Муниципальное общеобразовательное учреждение \"Средняя общеобразовательная школа №29\"  Нижнекамского муниципального района Республики Татарстан"]
[47,"Яровенко","Полина","Владимировна",9,9,22,{"$f":"[1]лист1!m9","v":100},"участник","нет","Валиева Елена Анатольевна","Муниципальное общеобразовательное учреждение \"Средняя общеобразовательная школа №29\"  Нижнекамского муниципального района Республики Татарстан"]
[48,"Соловьев","Александр ","Геннадьевич",9,9,14,{"$f":"[1]лист1!m10","v":100},"участник","нет","Валиева Елена Анатольевна","Муниципальное общеобразовательное учреждение \"Средняя общеобразовательная школа №29\"  Нижнекамского муниципального района Республики Татарстан"]
[49,"Ахметова","Азалия","Ришатовна",9,9,12,{"$f":"[1]лист1!m11","v":100},"участник","нет","Валиева Елена Анатольевна","Муниципальное общеобразовательное учреждение \"Средняя общеобразовательная школа №29\"  Нижнекамского муниципального района Республики Татарстан"]
[50,"Иванов","Вячеслав","Юрьевич",9,9,10,{"$f":"H43","v":100},"участник","нет","Валиева Елена Анатольевна","Муниципальное общеобразовательное учреждение \"Средняя общеобразовательная школа №29\"  Нижнекамского муниципального района Республики Татарстан"]
[51,"Владимиров","Егор","Александрович",{"$f":"E52","v":9},{"$f":"F52","v":9},7,{"$f":"H43","v":100},"участник","нет","Валиева Елена Анатольевна","Муниципальное общеобразовательное учреждение \"Средняя общеобразовательная школа №29\"  Нижнекамского муниципального района Республики Татарстан"]
[52,"Хисматуллин ","Эмиль","Маратович",9,{"$f":"F53","v":9},6,{"$f":"H44","v":100},"участник","нет","Валиева Елена Анатольевна","Муниципальное общеобразовательное учреждение \"Средняя общеобразовательная школа №29\"  Нижнекамского муниципального района Республики Татарстан"]
[53,"Лихачев ","Кирилл","Сергеевич",10,10,75,100,"призер","нет","Валиева Елена Анатольевна","Муниципальное общеобразовательное учреждение \"Средняя общеобразовательная школа №29\"  Нижнекамского муниципального района Республики Татарстан"]
[54,"Андриянова","Софья","Алексеевна",10,10,43,100,"участник","нет","Валиева Елена Анатольевна","Муниципальное общеобразовательное учреждение \"Средняя общеобразовательная школа №29\"  Нижнекамского муниципального района Республики Татарстан"]
[55,"Валиева","Алия","Ринатовна",{"$f":"E56","v":10},{"$f":"F56","v":10},35,100,"участник","нет","Валиева Елена Анатольевна","Муниципальное общеобразовательное учреждение \"Средняя общеобразовательная школа №29\"  Нижнекамского муниципального района Республики Татарстан"]
[56,"Вершинина","Анна","Андреевна",{"$f":"E57","v":10},{"$f":"F57","v":10},34,100,"участник","нет","Валиева Елена Анатольевна","Муниципальное общеобразовательное учреждение \"Средняя общеобразовательная школа №29\"  Нижнекамского муниципального района Республики Татарстан"]
[57,"Ахметшина ","Зарина","Альбертовна",{"$f":"E58","v":10},{"$f":"F58","v":10},33,100,"участник","нет","Валиева Елена Анатольевна","Муниципальное общеобразовательное учреждение \"Средняя общеобразовательная школа №29\"  Нижнекамского муниципального района Республики Татарстан"]
[58,"Мифтахова ","Елизавета","Сергеевна",{"$f":"E59","v":10},{"$f":"F59","v":10},32,100,"участник","нет","Валиева Елена Анатольевна","Муниципальное общеобразовательное учреждение \"Средняя общеобразовательная школа №29\"  Нижнекамского муниципального района Республики Татарстан"]
[59,"Адиева","Диана","Анваровна",10,10,30,100,"участник","нет","Степанов Бронислав Анатольевич","Муниципальное общеобразовательное учреждение \"Средняя общеобразовательная школа №29\"  Нижнекамского муниципального района Республики Татарстан"]
[60,"Иванов","Евгений","Олегович",{"$f":"E61","v":10},{"$f":"F61","v":10},26,100,"участник","нет","Валиева Елена Анатольевна","Муниципальное общеобразовательное учреждение \"Средняя общеобразовательная школа №29\"  Нижнекамского муниципального района Республики Татарстан"]
[61,"Липина","Ксения","Витальевн",10,10,23,100,"участник","нет","Валиева Елена Анатольевна","Муниципальное общеобразовательное учреждение \"Средняя общеобразовательная школа №29\"  Нижнекамского муниципального района Республики Татарстан"]
[62,"Емелина","Милена","Михайловна",{"$f":"E63","v":10},{"$f":"F63","v":10},23,{"$f":"H54","v":100},"участник","нет","Валиева Елена Анатольевна","Муниципальное общеобразовательное учреждение \"Средняя общеобразовательная школа №29\"  Нижнекамского муниципального района Республики Татарстан"]
[63,"Семенова","Эвелина","Михайловна",{"$f":"E64","v":10},{"$f":"F64","v":10},22,100,"участник","нет","Степанов Бронислав Анатольевич","Муниципальное общеобразовательное учреждение \"Средняя общеобразовательная школа №29\"  Нижнекамского муниципального района Республики Татарстан"]
[64,"Газизова","Ильвина","Наилевна",10,10,20,100,"участник","нет","Степанов Бронислав Анатольевич","Муниципальное общеобразовательное учреждение \"Средняя общеобразовательная школа №29\"  Нижнекамского муниципального района Республики Татарстан"]
[65,"Прилепская","Валерия","Вячеславовна",10,10,18,100,"участник","нет","Валиева Елена Анатольевна","Муниципальное общеобразовательное учреждение \"Средняя общеобразовательная школа №29\"  Нижнекамского муниципального района Республики Татарстан"]
[66,"Мирзина","Диана","Анваровна",10,{"$f":"F67","v":10},15,100,"участник","нет","Степанов Бронислав Анатольевич","Муниципальное общеобразовательное учреждение \"Средняя общеобразовательная школа №29\"  Нижнекамского муниципального района Республики Татарстан"]
[67,"Шмыров ","Артем","Павлович",10,10,13,100,"участник","нет","Валиева Елена Анатольевна","Муниципальное общеобразовательное учреждение \"Средняя общеобразовательная школа №29\"  Нижнекамского муниципального района Республики Татарстан"]
[68,"Иванова","Влада","Дмитриевна",{"$f":"E69","v":10},{"$f":"F69","v":10},12,100,"участник","нет","Валиева Елена Анатольевна","Муниципальное общеобразовательное учреждение \"Средняя общеобразовательная школа №29\"  Нижнекамского муниципального района Республики Татарстан"]
[69,"Шагабетдинов","Дамир","Ильшатович",10,10,10,100,"участник","нет","Валиева Елена Анатольевна","Муниципальное общеобразовательное учреждение \"Средняя общеобразовательная школа №29\"  Нижнекамского муниципального района Республики Татарстан"]
[70,"Гильфанов ","Аскар","Маратович",{"$f":"E71","v":10},{"$f":"F71","v":10},8,{"$f":"H62","v":100},"участник","нет","Валиева Елена Анатольевна","Муниципальное общеобразовательное учреждение \"Средняя общеобразовательная школа №29\"  Нижнекамского муниципального района Республики Татарстан"]
[71,"Набиева ","Аделя ","Рафаэлевна",11,11,59,100,"призер","нет","Степанов Бронислав Анатольевич","Муниципальное общеобразовательное учреждение \"Средняя общеобразовательная школа №29\"  Нижнекамского муниципального района Республики Татарстан"]
[72,"Мелешина ","Виктория","Андреевна",11,11,41,100,"участник","нет","Степанов Бронислав Анатольевич","Муниципальное общеобразовательное учреждение \"Средняя общеобразовательная школа №29\"  Нижнекамского муниципального района Республики Татарстан"]
[73,"Кондратьева ","Камилла ","Вадимовна",11,11,29,100,"участник","нет","Степанов Бронислав Анатольевич","Муниципальное общеобразовательное учреждение \"Средняя общеобразовательная школа №29\"  Нижнекамского муниципального района Республики Татарстан"]
[74,"Дементьева ","Виктория","Евгеньевна",11,11,26,100,"участник","нет","Степанов Бронислав Анатольевич","Муниципальное общеобразовательное учреждение \"Средняя общеобразовательная школа №29\"  Нижнекамского муниципального района Республики Татарстан"]
[75,"Роменская ","Екатерина","Олеговна",11,11,25,100,"участник","нет","Степанов Бронислав Анатольевич","Муниципальное общеобразовательное учреждение \"Средняя общеобразовательная школа №29\"  Нижнекамского муниципального района Республики Татарстан"]
[76,"Болотова ","Анастасия","Александровна",11,11,24,100,"участник","нет","Степанов Бронислав Анатольевич","Муниципальное общеобразовательное учреждение \"Средняя общеобразовательная школа №29\"  Нижнекамского муниципального района Республики Татарстан"]
[77,"Елисеев","Илья","Игоревич",11,11,23,100,"участник","нет","Степанов Бронислав Анатольевич","Муниципальное общеобразовательное учреждение \"Средняя общеобразовательная школа №29\"  Нижнекамского муниципального района Республики Татарстан"]
[78,"Мальковская ","Милана","Шамсутдиновна",11,11,14,100,"участник","нет","Степанов Бронислав Анатольевич","Муниципальное общеобразовательное учреждение \"Средняя общеобразовательная школа №29\"  Нижнекамского муниципального района Республики Татарстан"]
[79,"Храмкова ","Виктория","Андреевна",11,11,12,100,"участник","нет","Степанов Бронислав Анатольевич","Муниципальное общеобразовательное учреждение \"Средняя общеобразовательная школа №29\"  Нижнекамского муниципального района Республики Татарстан"]
[80,"Букреева ","Полина","Николаевна",11,21,11,100,"участник","нет","Степанов Бронислав Анатольевич","Муниципальное общеобразовательное учреждение \"Средняя общеобразовательная школа №29\"  Нижнекамского муниципального района Республики Татарстан"]